Cogmind - Beta 16.1 @@@ ROGUE MODE // 2026.02.27 @ 19:52:54 Player: Sen Result: Destroyed by Y-45 Defender with Heavy Assault Rifle Performance ------------- Evolutions (0) 0 Regions Visited (4) 800 Robots Destroyed (15) 75 Value Destroyed (316) 316 Prototype IDs (6) 120 Alien Tech Used (0) 0 Bonus (95) 95 TOTAL SCORE: 1406 Bonus ------- Follower Combat Kills 95 Cogmind --------- Core Integrity 0/250 Matter 300/300 Energy 265/265 System Corruption 2% Temperature Cool (9) Movement Walking (140) Location -8/Recycling Parts ------- > --- POWER (1) -------- Improved Ion Engine > --- PROPULSION (2) --- Makeshift Leg > --- UTILITY (2) ------ Small Storage Unit > --- WEAPON (2) ------- Light Assault Rifle > --- INVENTORY (8) ---- Compact Wheel Scrap Suit Experimental Sensor Array Scrap Shield Pulse Rifle Scythe Peak State ------------ > --- POWER ------------ Improved Ion Engine > --- PROPULSION ------- Carbon-fiber Leg Makeshift Leg > --- UTILITY ---------- Small Storage Unit Terrain Scanner > --- WEAPON ----------- EM Pulse Cannon Scythe > --- INVENTORY -------- Compact Wheel Scrap Suit Experimental Sensor Array Scrap Shield Pulse Rifle Light Assault Rifle [Rating: 19] Favorites ----------- Power Ion Engine Engine Ion Engine Propulsion Aluminum Leg Leg Aluminum Leg Utility Small Storage Unit Device Terrain Scanner Storage Small Storage Unit Processor Visual Processing Unit Weapon Small Laser Energy Gun Small Laser Energy Cannon EM Pulse Cannon Ballistic Gun Light Assault Rifle Special Weapon Mining Laser Slashing Weapon Scythe Build | -11 -10 -10 -10 -8 ------- Run | Yrd Mat Min Sub Rec Slots Evolved . | . . . . . Power . | . . . . . Propulsion . | . . . . . Utility . | . . . . . Weapon . | . . . . . Parts Attached 21 | 7 3 4 3 4 Power 3 | 1 . 1 . 1 Engine 3 | 1 . 1 . 1 Core . | . . . . . Reactor . | . . . . . Propulsion 8 | 2 2 2 1 1 Treads . | . . . . . Leg 8 | 2 2 2 1 1 Wheel . | . . . . . Hover . | . . . . . Flight . | . . . . . Utility 3 | 1 1 . 1 . Device 1 | . . . 1 . Storage 1 | 1 . . . . Processor 1 | . 1 . . . Hackware . | . . . . . Protection . | . . . . . Artifact . | . . . . . Weapon 7 | 3 . 1 1 2 Energy Gun 3 | 3 . . . . Energy Cannon 1 | . . . . 1 Ballistic Gun 1 | . . . 1 . Ballistic Cannon . | . . . . . Launcher . | . . . . . Special Weapon 1 | . . 1 . . Impact Weapon . | . . . . . Slashing Weapon 1 | . . . . 1 Piercing Weapon . | . . . . . Special Melee Weapon . | . . . . . Unidentified Prototypes . | . . . . . Parts Lost 5 | . 2 . . 3 Power . | . . . . . Propulsion 1 | . . . . 1 Utility 1 | . . . . 1 Weapon 3 | . 2 . . 1 Highest Loss Streak 3 | . 2 . . 3 To Critical Strikes . | . . . . . Average Backups 5 | 1 4 6 6 5 Power . | . 1 1 . . Propulsion 1 | . 2 2 1 1 Utility 2 | . . 2 3 3 Weapon 1 | . 1 1 1 1 Tool/Special . | . . . . . Unused Backups 8 | . . 2 1 5 Power . | . . . . . Propulsion 2 | . . . 1 1 Utility 4 | . . 1 . 3 Weapon 2 | . . 1 . 1 Tool/Special . | . . . . . Average Slot Usage (%) 99 | . 97 99 100 99 Engine 14 | . 14 14 14 14 Leg 27 | . 28 27 28 27 Device 5 | . . . 10 13 Storage 14 | . 14 14 14 14 Processor 8 | . 12 14 3 . Energy Gun 12 | . 27 13 14 1 Energy Cannon 3 | . . . . 12 Ballistic Gun 4 | . . . 9 10 Special Weapon 6 | . . 13 4 . Slashing Weapon 1 | . . . . 4 Peak Build Rating 19 | 6 8 10 11 19 Average Rating 10 | 4 7 9 10 16 On Entrance 6 | . 6 6 10 11 Avg Prop Armor Cover (%) . | . . . . . Naked Turns . | . . . . . Heaviest Build 21 | 14 14 12 13 21 Greatest Support 35 | 20 20 20 25 35 Greatest Overweight (x) 1 | 1 . . . . Average Overweight (x) . | . . . . . Largest Inventory Capacity 8 | 8 8 8 8 8 Average Capacity 7 | 6 8 8 8 8 Most Carried 8 | 3 8 8 8 8 Average Carried 6 | 1 4 7 7 7 Final Capacity 8 | 8 8 8 8 8 Final Carried 8 | 3 8 8 8 8 Class Distribution -------------------- 84% | Mutant 15% | Scavenger-Mutant Dominant Class ---------------- Mutant | -10/Materials Mutant | -10/Mines Mutant | -10/Subcaves Scavenger-Mutant | -8/Recycling Resources | -11 -10 -10 -10 -8 ----------- Run | Yrd Mat Min Sub Rec Matter Collected 446 | 202 98 50 33 63 Remotely . | . . . . . Salvage Created 453 | . 160 47 32 214 Parts 36 | . 10 11 4 11 Haulers Intercepted . | . . . . . Recyclers Shooed 1 | . 1 . . . Parts Field Recycled . | . . . . . Retrieved Matter . | . . . . . Parts Self-Destructed 17 | . . . 17 . Prevented . | . . . . . Parts Restored . | . . . . . Kills | -11 -10 -10 -10 -8 ------- Run | Yrd Mat Min Sub Rec Combat Hostiles Destroyed 8 | . 3 . 2 3 Melee 1 | . . . . 1 Guns 6 | . 3 . 2 1 Cannons 1 | . . . . 1 Classes Destroyed 7 | . 2 3 1 1 Worker 1 | . . 1 . . Builder 1 | . . 1 . . Tunneler 3 | . . 3 . . Watcher 2 | . 2 . . . Swarmer 2 | . . . 2 . Grunt 3 | . 3 . . . Sentry 3 | . . . . 3 Best Kill Streak 2 | . 1 1 2 1 Combat Bots Only 2 | . 1 . 2 1 Max Kills in Single Turn 1 | . 1 1 1 1 Gunslinging . | . . . . . Exploded . | . . . . . Melee 1 | . . . . 1 Uniques/NPCs Destroyed . | . . . . . Combat | -11 -10 -10 -10 -8 -------- Run | Yrd Mat Min Sub Rec Hostile Shots Fired 126 | . 31 1 68 26 Missed 49 | . 3 1 39 6 Hits 77 | . 28 . 29 20 Projectile 77 | . 28 . 29 20 Critical Strikes 1 | . . . . 1 Damage Taken 917 | . 369 . 220 328 Core 252 | . 84 . 59 109 Absorbed by Shields . | . . . . . Core Remaining (%) 100 | 100 . . . . Volleys Fired 39 | . 17 13 3 6 Largest 2 | . 2 2 2 2 Hottest 140 | . 90 140 60 83 Shots Fired 72 | . 34 24 6 8 Gun 57 | . 34 13 6 4 Cannon 4 | . . . . 4 Launcher . | . . . . . Special 11 | . . 11 . . Kinetic 6 | . . . 3 3 Thermal 45 | . 17 24 3 1 Explosive . | . . . . . Electromagnetic 21 | . 17 . . 4 Robot Hit Streak 10 | . 10 4 5 7 Robot Miss Streak 4 | . 4 3 2 1 Penetration Max . | . . . . . Secondary Targets 1 | . . . 1 . Max Gunslinging Chain 1 | . . . 1 . Shots Hit Robots 46 | . 21 13 3 9 Core Hits 20 | . 9 5 2 4 Critical Kills 1 | . . . 1 . Critical Parts Destroyed . | . . . . . Critical Strikes 5 | . 4 . 1 . Burn 4 | . 4 . . . Destroy 1 | . . . 1 . Melee Attacks 4 | . . . . 4 Impact . | . . . . . Slashing 4 | . . . . 4 Piercing . | . . . . . Sneak Attacks 1 | . . . . 1 Combat Hostiles . | . . . . . Follow-up Attacks . | . . . . . Damage Inflicted 859 | . 279 233 28 319 Guns 422 | . 279 87 28 28 Cannons 94 | . . . . 94 Explosions 67 | . . . . 67 Melee 130 | . . . . 130 Ramming 26 | . . 26 . . Kinetic 34 | . . . 18 16 Thermal 447 | . 151 207 10 79 Explosive . | . . . . . Electromagnetic 222 | . 128 . . 94 Impact . | . . . . . Slashing 130 | . . . . 130 Piercing . | . . . . . Highest Corruption 2 | . . . . 2 Average Corruption 1 | . . . . 1 Corruption Purged . | . . . . . Corruption Blocked . | . . . . . Overload Shots . | . . . . . Overflow Damage 39 | . . 5 . 34 Projectiles 5 | . . 5 . . Explosions . | . . . . . Melee 34 | . . . . 34 Knockbacks . | . . . . . Impact . | . . . . . Kinetic . | . . . . . Secondary . | . . . . . Self-Inflicted Damage 26 | . . . . 26 Shots 1 | . . . . 1 Rammed . | . . . . . Targets Rammed 3 | . . 3 . . Kicked 3 | . . 3 . . Crushed . | . . . . . Highest Temperature 249 | . 249 40 2 94 Average Temperature 45 | . 72 21 2 40 Received Heat Transfer 411 | . 207 . 132 72 Siege Activations . | . . . . . Martial Activations . | . . . . . Shielding Activations . | . . . . . Robots Disrupted . | . . . . . Combat Hostiles . | . . . . . Robots Corrupted . | . . . . . Combat Hostiles . | . . . . . Parts Fried . | . . . . . Impact Corruptions . | . . . . . Robots Melted . | . . . . . Combat Hostiles . | . . . . . Parts Melted 2 | . 2 . . . Heat Transferred 1340 | . 740 450 25 125 Parts Sabotaged . | . . . . . Parts Stolen . | . . . . . Parts Stripped . | . . . . . Power Chain Reactions 1 | . . . . 1 Alert | -11 -10 -10 -10 -8 ------- Run | Yrd Mat Min Sub Rec Maximum Alert Level . | . . . . . Low Security (%) 100 | 100 100 100 . 100 Level 1 . | . . . . . Level 2 . | . . . . . Level 3 . | . . . . . Level 4 . | . . . . . Level 5 . | . . . . . High Security . | . . . . . Max Security . | . . . . . Peak Influence 81 | . 26 81 . 42 Initial 42 | . . . . 42 Average 5 | . 2 5 . 7 Influence Increases 449 | . 80 113 144 112 Destroy 0b10 Robot/C 260 | . 60 60 80 60 Destroy 0b10 Robot/NC 40 | . 10 25 . 5 Destroy Leader 14 | . 4 10 . . Allied During Kill 20 | . . 16 4 . Successful Hack 31 | . 6 . . 25 Destroy Structure 9 | . . 2 . 7 Lose Combat Pursuer 75 | . . . 60 15 Influence Decreases 449 | . 80 113 56 200 Entered New Map 46 | . . . . 46 Time Decay 343 | . 60 113 16 154 Lost Part 20 | . 20 . . . Lost Ally 40 | . . . 40 . Squads Dispatched 1 | . 1 . . . Investigation . | . . . . . Extermination . | . . . . . Reinforcement 1 | . 1 . . . Assault . | . . . . . Garrison . | . . . . . Intercept . | . . . . . Searches Triggered . | . . . . . Construction Impeded . | . . . . . Haulers Reinforced . | . . . . . Active Scanning Responses . | . . . . . Cargo Convoy Interrupts . | . . . . . Stealth | -11 -10 -10 -10 -8 --------- Run | Yrd Mat Min Sub Rec Distress Signals 1 | . 1 . . . Communications Jammed . | . . . . . Distress Signals . | . . . . . Times Spotted 32 | . 13 3 10 6 Peak Tracking Total 6 | . 3 3 6 4 Tactical Retreats 3 | . . . 2 1 Traps | -11 -10 -10 -10 -8 ------- Run | Yrd Mat Min Sub Rec Traps Triggered . | . . . . . Indirectly . | . . . . . Trap Hack Attempts . | . . . . . Triggered . | . . . . . Disarmed . | . . . . . Reprogrammed . | . . . . . Reused . | . . . . . Traps Extracted . | . . . . . Installed . | . . . . . Triggered . | . . . . . Machines | -11 -10 -10 -10 -8 ---------- Run | Yrd Mat Min Sub Rec Machines Disabled 1 | . 1 . . . Max in Single Turn 1 | . 1 . . . Machines Repaired . | . . . . . Machines Dismantled . | . . . . . Machines Sabotaged . | . . . . . Overloaded Fab Kills . | . . . . . Hacking | -11 -10 -10 -10 -8 --------- Run | Yrd Mat Min Sub Rec Machines Accessed 12 | . 1 . . 11 Terminals 7 | . 1 . . 6 Fabricators . | . . . . . Repair Stations . | . . . . . Recycling Units 5 | . . . . 5 Scanalyzers . | . . . . . Garrison Access . | . . . . . Total Hacks 35 | . 6 . . 29 Successful 20 | . 5 . . 15 Failed 15 | . 1 . . 14 Catastrophic 2 | . 1 . . 1 Database Lockouts . | . . . . . Manual 17 | . 4 . . 13 Terminals 24 | . 6 . . 18 Fabricators . | . . . . . Repair Stations . | . . . . . Recycling Units 11 | . . . . 11 Scanalyzers . | . . . . . Garrison Access . | . . . . . Terminal Hacks 7 | . 2 . . 5 Record 1 | . . . . 1 Prototype ID Bank 3 | . 1 . . 2 Locate Traps 1 | . 1 . . . Zone Layout 2 | . . . . 2 Fabricator Hacks . | . . . . . Repair Station Hacks . | . . . . . Recycling Unit Hacks 6 | . . . . 6 Report Inventory 2 | . . . . 2 Retrieve Components 4 | . . . . 4 Scanalyzer . | . . . . . Garrison Access Hacks . | . . . . . Unauthorized Hacks 7 | . 3 . . 4 Terminals 6 | . 3 . . 3 Track 2 | . 1 . . 1 Botnet 2 | . 1 . . 1 Operators 2 | . 1 . . 1 Fabricators . | . . . . . Repair Stations . | . . . . . Recycling Units 1 | . . . . 1 Monitor 1 | . . . . 1 Scanalyzers . | . . . . . Garrison Access . | . . . . . Data Cores Recovered . | . . . . . Used . | . . . . . Hacking Detections 10 | . 1 . . 9 Full Trace Events 1 | . . . . 1 Feedback Events . | . . . . . Feedback Blocked . | . . . . . Robot Schematics Acquired . | . . . . . Robots Built . | . . . . . Authchips . | . . . . . Time . | . . . . . Total Robot Build Rating . | . . . . . Part Schematics Acquired . | . . . . . Parts Built . | . . . . . Authchips . | . . . . . Time . | . . . . . Total Part Build Rating . | . . . . . Part Studies Acquired . | . . . . . Parts Repaired . | . . . . . Time . | . . . . . Parts Recycled . | . . . . . Recycled Matter . | . . . . . Retrieved Matter . | . . . . . Retrieved Components 6 | . . . . 6 Parts Scanalyzed . | . . . . . Part Schematics Acquired . | . . . . . Parts Damaged . | . . . . . Bothacking | -11 -10 -10 -10 -8 ------------ Run | Yrd Mat Min Sub Rec Used RIF Installer . | . . . . . Robots Hacked . | . . . . . Non-combat . | . . . . . Combat . | . . . . . Robot Hacks Applied . | . . . . . Relay Couplers Released . | . . . . . Fabnet Peak Effective % . | . . . . . Robots Rewired 2 | . . . . 2 Allies Hacked . | . . . . . Hacks Repelled . | . . . . . Allies | -11 -10 -10 -10 -8 -------- Run | Yrd Mat Min Sub Rec Total Allies 7 | . . 5 . 2 Largest Group 5 | . . 5 5 2 Highest-Rated Group 85 | . . 85 85 33 Highest-Rated Ally 31 | . . 31 31 18 Total Orders . | . . . . . Ally Attacks 41 | . . 12 23 6 Total Damage 559 | . . 88 334 137 Kills 7 | . . 3 4 . Allies Corrupted . | . . . . . Allies Melted . | . . . . . Intel | -11 -10 -10 -10 -8 ------- Run | Yrd Mat Min Sub Rec Active Infowar (turns) 3149 | . 449 1357 571 772 Optics 1937 | . 449 1357 131 . Terrain 1212 | . . . 440 772 Robot Analysis Total . | . . . . . Derelict Logs Recovered 2 | . . 1 1 . Drone Launches . | . . . . . Drone Recoveries . | . . . . . Exploration | -11 -10 -10 -10 -8 ------------- Run | Yrd Mat Min Sub Rec Turns Passed 3275 | 71 491 1357 571 785 Spaces Moved 1996 | 50 185 989 346 426 Core 3 | 3 . . . . Treads . | . . . . . Legs 1993 | 47 185 989 346 426 Wheels . | . . . . . Hover . | . . . . . Flight . | . . . . . Fastest Speed 50 | 50 120 120 120 120 Average Speed 121 | 116 120 120 120 129 Slowest Speed 140 | 120 120 120 120 140 Overloaded Moves . | . . . . . Propulsion Burnouts . | . . . . . Robots Hopped . | . . . . . Potential Cave-ins . | . . . . . Cave-ins Triggered . | . . . . . Exploration Rate (%) 45 | 4 33 99 15 76 Regions Visited 4 Branch Regions 3 Pre-discovered Areas 1 | . . 1 . . Known Exits Taken . | . . . . . Unknown Exits Taken 4 | 1 1 1 1 . Scrap Searched 2 | . . 1 1 . Spaces Dug 3 | . . 1 . 2 Terrain Destroyed 9 | . . 2 . 7 Melee 2 | . . . . 2 Projectile 2 | . . 2 . . AOE 5 | . . . . 5 Terrain Rammed . | . . . . . Walls Destroyed . | . . . . . Machines Disabled . | . . . . . Actions | -11 -10 -10 -10 -8 --------- Run | Yrd Mat Min Sub Rec Total 2737 | 59 418 1114 499 647 Wait 629 | . 211 94 140 184 Move 1992 | 49 184 988 345 426 Hop . | . . . . . Pick Up 16 | 2 3 6 3 2 Fast Attach 9 | 7 1 . . 1 Attach 6 | . . 4 1 1 Detach 2 | 1 . . 1 . Swap 10 | . 2 1 2 5 Drop 13 | . . 5 4 4 Fire 39 | . 17 13 3 6 Melee 4 | . . . . 4 Ram . | . . . . . Kick 3 | . . 3 . . Crush . | . . . . . Escape Stasis . | . . . . . Rewire 14 | . . . . 14 Trap . | . . . . . Miscellaneous . | . . . . . Route ------- -11/Scrapyard -10/Materials -10/Mines (discovered 4 exits: [*Mat x2] / [*Exi] / [*Sub]) -10/Subcaves (discovered 2 exits: [*Mat] / *Rec) -8/Recycling (discovered 1 exit: [*Fac]) History --------- Turn | Location | Event 29 | -11/Scrapyard | Discovered new exit (range 16) 72 | -11/Scrapyard | Entered Materials 95 | -10/Materials | Discovered new exit (range 14) 306 | -10/Materials | Build established: Mutant 563 | -10/Materials | Entered Mines 658 | -10/Mines | Assisted by bots powering up and referring to "LRC-V3" 660 | -10/Mines | Discovered new exit (range 9) 687 | -10/Mines | Found a Scrap Suit stashed away for nefarious purposes 689 | -10/Mines | Found Scrap Suit 695 | -10/Mines | Learned Materials stockpile data 745 | -10/Mines | Discovered new exit (range 12) 947 | -10/Mines | Found a damaged Exp. Sensor Array with a note attached 949 | -10/Mines | Found Prototype Device 1491 | -10/Mines | Learned location of Storage (-8) 1837 | -10/Mines | Discovered new exit (range 6) 1855 | -10/Mines | Deemed a non-threat by the Exiles lab entrance 1856 | -10/Mines | Discovered new exit (range 5) 1920 | -10/Mines | Entered Subcaves 1920 | -10/Subcaves | Accompanied by 5 allies 1921 | -10/Subcaves | Approached by a straggling Scientist 1925 | -10/Subcaves | Led the pair of lost Derelicts to an unsafe place 1955 | -10/Subcaves | Learned location of 1 exit from Materials 2040 | -10/Subcaves | Shifting Twisted Machinery released Scrap Shield 2077 | -10/Subcaves | Discovered new exit (range 5) 2165 | -10/Subcaves | Lost 3 allies 2438 | -10/Subcaves | Discovered new exit (range 11) 2483 | -10/Subcaves | Core integrity fell below 50% 2491 | -10/Subcaves | Entered Recycling 2704 | -8/Recycling | Discovered new exit (range 9) 2837 | -8/Recycling | Build established: Scavenger-Mutant 3270 | -8/Recycling | Core integrity fell below 20% 3276 | -8/Recycling | Destroyed by Y-45 Defender with Heavy Assault Rifle Last Messages --------------- 03254_ P-60 Hacker springs to life. 03254_ I-25 Savior springs to life. 03255_ Y-45 Defender springs to life. 03256_ Attempting to rewire Y-45 Defender. 03261_ Carbon-fiber Leg destroyed. 03262_ Attempting to rewire Y-45 Defender. 03263_ Y-45 Defender rewired. 03263_ Terrain Scanner destroyed. 03263_ EM Pulse Cannon destroyed. 03265_ P-60 Hacker resets I-25 Savior, system corruption cleaned. 03265_ Attempting to rewire L-31 Rogue. 03266_ L-31 Rogue rewired. 03270_ Destroyed Shock Rifle. 03273_ Attempting to rewire S-10 Pest. 03274_ Y-45 Defender suffers critical hit (Burn). 03275_ Attempting to rewire S-10 Pest. 03275_ Destroyed Gravmag System. 03276_ Attempting to rewire S-10 Pest. Map ----- +----------------------------------------------------+ | ??????????????????### #??#""" | | ??????????????#????## ####### | | ????????????????????# ## | | ???????#####???#?#?## ## | | ???????#"""#???#?#??# %# """ | | ??????##"Y"########## ## """ | | ??????# ## ## """ | | ???#??# " """ ## ## | | ??????# "" "T" ## ## """ | | ??????# "" # # """ | | ??????# """ # # """ | | ??????# "" + + | | ??????# """ # # """ | | ??????# """ # # """ | | ??????# """ ### ### """ | | ??????# " #?# #?# | | ??????# #?# #?# """ | | ??????# #?# #?# """ | | #?????################ #?# """ | | ??????????????????# #?# | | ?????############## ######## | | ?#???# = a # ######## | | ????## Y # | | ?????#Y a s/ li% # | | ??#??#s | i! i # | | ?????#@ k # """ """ | | ?????# r% Y + """ """ | | ?????# # """ """ | | ?????# %lp Y ### """ """ | | ?????# r r#?# """ """ | | ?????#k! Y !u #?# | | ?????# d! i #?# | | ?????# ! l #?# """ """ | | ?????###;########+#?# """ """ | | ???????###??#???# #?# """ """ | | ??######%######?# #?# """ """ | | ??# #?# ### """ """ | | ??# ### ### | | ??# # # | | ??# # | | ??# + | | ??# # | | ??# # ########### | | ??# #######?????????? | | ??# #???????????????? | | ?# #??????#????????? | | ?## #?????????? ????? | | ??# #???????????????? | | ??# #???????????????? | | ??#############???????????????? | +----------------------------------------------------+ Best States ------------- Heat Dissipation 25 Energy Generation 12 Energy Capacity 265 Matter Stores 300 Matter Capacity 300 Sight Range 18 Terrain Scan Range 14 Terrain Scan Density 10 Evasion (%) 55 Item Schematics ----------------- None Robot Schematics ------------------ None Fabricated ------------ Nothing Repaired ---------- Nothing Studied --------- None Alien Tech Used ----------------- None Achievements -------------- None Challenges ------------ None Game ------ Seed NeutronCoolantWeb Manual? 0 Play Time 00:30:43 Cumulative 109.3 hours Start 2026.02.27 @ 19:23:26 End 2026.02.27 @ 19:52:54 Sessions 1 Manual Loads 0 Difficulty Rogue Special Mode None Game No. 100 Rogue 100 Adventurer 0 Explorer 0 Win Type - Total 0 Types 0/0/0/0/0/0/0/0/0/0 Lore% 46 Gallery% 41 Achievement% 32 Wizard Run 0 Options --------- Layout 1 ASCII 1 Keyboard 1 Movement Numpad Keybinds 0 Fullscreen 1 Font 24/Smallcaps Map View 50x35 Zoom Use 0% Tactical HUD 1 Map Filters NONE Filters NONE Steam 1 RUN: b68fec20-98b4-430d-861c-cea399b2b277